[Event "*** Titled Tuesday Blitz"]
[Site "Chess.com"]
[Date "2021.03.09"]
[Round "11"]
[White "Herman-NY"]
[Black "Ranindu2003"]
[Result "0-1"]
[WhiteElo "2453"]
[BlackElo "2613"]
[TimeControl "180+1"]
[EndTime "12:08:09 PST"]
[Termination "Ranindu2003 won by resignation"]

1. e4 {[%clk 0:03:00.9]} 1... g6 {[%clk 0:02:59.3]} 2. d4 {[%clk 0:03:01]} 2...
Bg7 {[%clk 0:03:00]} 3. Nc3 {[%clk 0:03:01.7]} 3... d6 {[%clk 0:03:00.6]} 4. h3
{[%clk 0:02:59.7]} 4... a6 {[%clk 0:03:00]} 5. g4 {[%clk 0:02:54.3]} 5... b5
{[%clk 0:03:00.4]} 6. Bg2 {[%clk 0:02:54.4]} 6... Bb7 {[%clk 0:03:00.2]} 7. a3
{[%clk 0:02:49.4]} 7... Nd7 {[%clk 0:03:00.5]} 8. Nge2 {[%clk 0:02:49.2]} 8...
c5 {[%clk 0:03:00.7]} 9. Be3 {[%clk 0:02:47.8]} 9... Qc7 {[%clk 0:02:58.2]} 10.
O-O {[%clk 0:02:45.8]} 10... Ngf6 {[%clk 0:02:56.7]} 11. Ng3 {[%clk 0:02:34.2]}
11... Nb6 {[%clk 0:02:55.7]} 12. b3 {[%clk 0:01:07.5]} 12... O-O {[%clk
0:02:52.4]} 13. Nce2 {[%clk 0:00:51.5]} 13... Rac8 {[%clk 0:02:46.7]} 14. Rc1
{[%clk 0:00:48.1]} 14... Nfd7 {[%clk 0:02:45.1]} 15. Qd2 {[%clk 0:00:38.8]}
15... Rfd8 {[%clk 0:02:33.7]} 16. Bh6 {[%clk 0:00:35.3]} 16... Bh8 {[%clk
0:02:32.4]} 17. d5 {[%clk 0:00:29]} 17... c4 {[%clk 0:02:31.1]} 18. Kh2 {[%clk
0:00:19.9]} 18... Re8 {[%clk 0:02:23.4]} 19. f4 {[%clk 0:00:18.6]} 19... c3
{[%clk 0:02:19.8]} 20. Qe1 {[%clk 0:00:16.4]} 20... e6 {[%clk 0:02:18.5]} 21.
dxe6 {[%clk 0:00:13]} 21... fxe6 {[%clk 0:02:18.2]} 22. Qf2 {[%clk 0:00:12.2]}
22... Nf6 {[%clk 0:02:12.7]} 23. g5 {[%clk 0:00:09.3]} 23... Nfd7 {[%clk
0:02:10.1]} 24. f5 {[%clk 0:00:09.8]} 24... exf5 {[%clk 0:02:07.8]} 25. exf5
{[%clk 0:00:10.7]} 25... Ne5 {[%clk 0:02:07.2]} 26. fxg6 {[%clk 0:00:08.8]}
26... hxg6 {[%clk 0:02:08.1]} 27. Bxb7 {[%clk 0:00:08.2]} 27... Qxb7 {[%clk
0:02:08.3]} 28. Nf4 {[%clk 0:00:07.9]} 28... Bg7 {[%clk 0:02:03.6]} 29. Bxg7
{[%clk 0:00:07.6]} 29... Kxg7 {[%clk 0:02:04.4]} 30. Nfh5+ {[%clk 0:00:06.1]}
30... gxh5 {[%clk 0:01:59.8]} 31. Qf6+ {[%clk 0:00:06.3]} 31... Kg8 {[%clk
0:01:59.4]} 32. Nxh5 {[%clk 0:00:06.7]} 32... Qh7 {[%clk 0:01:56.2]} 33. Ng3
{[%clk 0:00:03.8]} 33... Ng4+ {[%clk 0:01:56.3]} 0-1

[Event "*** Titled Tuesday Blitz"]
[Site "Chess.com"]
[Date "2021.03.09"]
[Round "11"]
[White "shaheus"]
[Black "Natalya_Buksa"]
[Result "1-0"]
[WhiteElo "2403"]
[BlackElo "2511"]
[TimeControl "180+1"]
[EndTime "12:08:15 PST"]
[Termination "shaheus won by checkmate"]

1. e4 {[%clk 0:03:00.9]} 1... c5 {[%clk 0:02:59.9]} 2. Nf3 {[%clk 0:03:00.6]}
2... a6 {[%clk 0:03:00.1]} 3. c3 {[%clk 0:03:01.1]} 3... Nf6 {[%clk 0:02:56.4]}
4. e5 {[%clk 0:03:00.8]} 4... Nd5 {[%clk 0:02:56.9]} 5. d4 {[%clk 0:03:01.2]}
5... cxd4 {[%clk 0:02:56.9]} 6. cxd4 {[%clk 0:03:01.4]} 6... Nc6 {[%clk
0:02:57.2]} 7. Nc3 {[%clk 0:03:01.1]} 7... Nxc3 {[%clk 0:02:55.1]} 8. bxc3
{[%clk 0:03:01]} 8... d6 {[%clk 0:02:55.9]} 9. exd6 {[%clk 0:03:01]} 9... Qxd6
{[%clk 0:02:55.4]} 10. Bd3 {[%clk 0:03:00.9]} 10... e6 {[%clk 0:02:55.6]} 11. a4
{[%clk 0:02:53.4]} 11... Be7 {[%clk 0:02:55]} 12. Ba3 {[%clk 0:02:48.2]} 12...
Qc7 {[%clk 0:02:54.8]} 13. Bxe7 {[%clk 0:02:45.1]} 13... Qxe7 {[%clk 0:02:51.6]}
14. Qe2 {[%clk 0:02:42]} 14... O-O {[%clk 0:02:51.5]} 15. h4 {[%clk 0:02:41.3]}
15... h6 {[%clk 0:02:50.7]} 16. Qe4 {[%clk 0:02:39.4]} 16... f5 {[%clk
0:02:49.6]} 17. Qe2 {[%clk 0:02:35.4]} 17... Qd6 {[%clk 0:02:48.6]} 18. Rd1
{[%clk 0:02:26.3]} 18... Bd7 {[%clk 0:02:48.3]} 19. O-O {[%clk 0:02:23.9]} 19...
Rae8 {[%clk 0:02:48.7]} 20. Rfe1 {[%clk 0:02:23.7]} 20... Na5 {[%clk 0:02:44.9]}
21. Ne5 {[%clk 0:02:21.7]} 21... Rc8 {[%clk 0:02:34.8]} 22. Rc1 {[%clk 0:02:07]}
22... Bxa4 {[%clk 0:02:32.5]} 23. Ng6 {[%clk 0:01:46]} 23... Rfe8 {[%clk
0:02:31.8]} 24. h5 {[%clk 0:01:29.3]} 24... b5 {[%clk 0:02:31.4]} 25. Bxf5
{[%clk 0:01:17.1]} 25... exf5 {[%clk 0:02:19.6]} 26. Qxe8+ {[%clk 0:01:16.5]}
26... Rxe8 {[%clk 0:02:20]} 27. Rxe8+ {[%clk 0:01:15.8]} 27... Kf7 {[%clk
0:02:20.9]} 28. Rce1 {[%clk 0:01:13.2]} 28... Nc6 {[%clk 0:02:08.8]} 29. d5
{[%clk 0:01:00.7]} 29... b4 {[%clk 0:01:40.2]} 30. R1e6 {[%clk 0:00:49.5]} 30...
Nd8 {[%clk 0:00:52.8]} 31. Nh8# {[%clk 0:00:47.7]} 1-0

[Event "*** Titled Tuesday Blitz"]
[Site "Chess.com"]
[Date "2021.03.09"]
[Round "11"]
[White "eCztery"]
[Black "stoleriu"]
[Result "0-1"]
[WhiteElo "2455"]
[BlackElo "2618"]
[TimeControl "180+1"]
[EndTime "12:08:16 PST"]
[Termination "stoleriu won by resignation"]

1. e4 {[%clk 0:02:13.5]} 1... e6 {[%clk 0:03:00.9]} 2. Qe2 {[%clk 0:02:11]} 2...
d5 {[%clk 0:03:01.8]} 3. exd5 {[%clk 0:02:11.8]} 3... Qxd5 {[%clk 0:03:02]} 4.
Nc3 {[%clk 0:02:11.6]} 4... Qd8 {[%clk 0:03:02.9]} 5. Nf3 {[%clk 0:02:10.4]}
5... Nf6 {[%clk 0:03:03.8]} 6. d4 {[%clk 0:02:10.5]} 6... Be7 {[%clk 0:03:04.7]}
7. Bd2 {[%clk 0:02:08.9]} 7... O-O {[%clk 0:03:05.6]} 8. O-O-O {[%clk
0:02:08.9]} 8... b6 {[%clk 0:03:01.3]} 9. g4 {[%clk 0:02:06]} 9... Bb7 {[%clk
0:03:01.5]} 10. Rg1 {[%clk 0:02:04.6]} 10... Nd5 {[%clk 0:02:59.9]} 11. Bg2
{[%clk 0:01:57.1]} 11... Nd7 {[%clk 0:02:53.9]} 12. Kb1 {[%clk 0:01:51.6]} 12...
N7f6 {[%clk 0:02:50.5]} 13. g5 {[%clk 0:01:49.9]} 13... Nxc3+ {[%clk 0:02:50.4]}
14. Bxc3 {[%clk 0:01:47.7]} 14... Nd5 {[%clk 0:02:51.3]} 15. Bd2 {[%clk
0:01:47.2]} 15... a5 {[%clk 0:02:47.8]} 16. h4 {[%clk 0:01:44.4]} 16... a4
{[%clk 0:02:43.1]} 17. Ne5 {[%clk 0:01:43.6]} 17... a3 {[%clk 0:02:34.9]} 18.
Be4 {[%clk 0:01:34.9]} 18... axb2 {[%clk 0:02:33.3]} 19. Bxh7+ {[%clk
0:00:58.1]} 19... Kxh7 {[%clk 0:02:34.2]} 20. Qh5+ {[%clk 0:00:37.1]} 20... Kg8
{[%clk 0:02:33.5]} 21. g6 {[%clk 0:00:38]} 21... fxg6 {[%clk 0:02:30.5]} 22.
Rxg6 {[%clk 0:00:31.2]} 22... Bf6 {[%clk 0:02:16]} 23. Rdg1 {[%clk 0:00:25.2]}
23... Qe8 {[%clk 0:01:54.4]} 24. Qh6 {[%clk 0:00:20.4]} 24... Qe7 {[%clk
0:01:47.5]} 25. c4 {[%clk 0:00:16.7]} 25... Nc3+ {[%clk 0:01:25.9]} 26. Bxc3
{[%clk 0:00:16.5]} 26... Be4+ {[%clk 0:01:26.6]} 27. Kxb2 {[%clk 0:00:15.4]}
27... Qa3+ {[%clk 0:01:26.5]} 0-1

[Event "*** Titled Tuesday Blitz"]
[Site "Chess.com"]
[Date "2021.03.09"]
[Round "11"]
[White "Jospem"]
[Black "Goryachkina"]
[Result "1-0"]
[WhiteElo "2921"]
[BlackElo "2666"]
[TimeControl "180+1"]
[EndTime "12:08:21 PST"]
[Termination "Jospem won by resignation"]

1. e4 {[%clk 0:03:00.9]} 1... c6 {[%clk 0:03:00.1]} 2. Nf3 {[%clk 0:03:01.5]}
2... d5 {[%clk 0:03:00.4]} 3. d3 {[%clk 0:03:02.4]} 3... Qc7 {[%clk 0:02:59.8]}
4. Nc3 {[%clk 0:03:02.4]} 4... dxe4 {[%clk 0:02:58.8]} 5. dxe4 {[%clk
0:03:03.3]} 5... e5 {[%clk 0:02:58.7]} 6. Bc4 {[%clk 0:03:03.6]} 6... h6 {[%clk
0:02:51.8]} 7. O-O {[%clk 0:03:02.5]} 7... Nf6 {[%clk 0:02:51.8]} 8. Ne1 {[%clk
0:03:00.2]} 8... Bg4 {[%clk 0:02:40.6]} 9. f3 {[%clk 0:02:56.7]} 9... Bc5+
{[%clk 0:02:37.7]} 10. Kh1 {[%clk 0:02:56.2]} 10... Bh5 {[%clk 0:02:36.8]} 11.
Nd3 {[%clk 0:02:56.7]} 11... Bd6 {[%clk 0:02:35.7]} 12. Qe1 {[%clk 0:02:53.4]}
12... O-O {[%clk 0:02:30.9]} 13. Nd1 {[%clk 0:02:51.7]} 13... Nbd7 {[%clk
0:02:26.3]} 14. Ne3 {[%clk 0:02:51.5]} 14... Nb6 {[%clk 0:02:20.4]} 15. Bb3
{[%clk 0:02:47.3]} 15... c5 {[%clk 0:02:10.4]} 16. Nc4 {[%clk 0:02:36.7]} 16...
Nxc4 {[%clk 0:02:10.1]} 17. Bxc4 {[%clk 0:02:37.6]} 17... b5 {[%clk 0:01:20.8]}
18. Bxb5 {[%clk 0:02:29.5]} 18... c4 {[%clk 0:01:20.9]} 19. Nf2 {[%clk
0:02:29.5]} 19... Rfb8 {[%clk 0:01:02.3]} 20. Ba4 {[%clk 0:02:28.2]} 20... Rb4
{[%clk 0:01:01.8]} 21. b3 {[%clk 0:02:22.7]} 21... Rb7 {[%clk 0:00:55.6]} 22.
Be3 {[%clk 0:02:15.1]} 22... a5 {[%clk 0:00:43.4]} 23. Rd1 {[%clk 0:02:13.9]}
23... Bb4 {[%clk 0:00:32.2]} 24. Qe2 {[%clk 0:02:13]} 24... Rc8 {[%clk
0:00:21.2]} 25. bxc4 {[%clk 0:02:04.3]} 25... Qxc4 {[%clk 0:00:17.5]} 26. Rd8+
{[%clk 0:02:03.3]} 26... Kh7 {[%clk 0:00:17.3]} 27. Qxc4 {[%clk 0:02:03.6]}
27... Rxc4 {[%clk 0:00:17.2]} 28. Bb3 {[%clk 0:02:04.4]} 28... Rcc7 {[%clk
0:00:11.9]} 29. Nd3 {[%clk 0:02:04.8]} 29... Bc3 {[%clk 0:00:11.2]} 30. a4
{[%clk 0:01:59.5]} 30... Nd7 {[%clk 0:00:10.3]} 31. h4 {[%clk 0:01:53.1]} 31...
Bg6 {[%clk 0:00:08.3]} 32. Rd1 {[%clk 0:01:48]} 32... h5 {[%clk 0:00:08.4]} 33.
Nf2 {[%clk 0:01:47]} 33... Nf6 {[%clk 0:00:07.3]} 34. Nh3 {[%clk 0:01:46.6]}
34... Ng8 {[%clk 0:00:03.4]} 35. Ng5+ {[%clk 0:01:46.2]} 35... Kh8 {[%clk
0:00:03.6]} 36. Rxg8+ {[%clk 0:01:46.7]} 1-0

[Event "*** Titled Tuesday Blitz"]
[Site "Chess.com"]
[Date "2021.03.09"]
[Round "11"]
[White "tlomigtlis"]
[Black "Leo_C"]
[Result "1-0"]
[WhiteElo "2585"]
[BlackElo "2435"]
[TimeControl "180+1"]
[EndTime "12:08:21 PST"]
[Termination "tlomigtlis won on time"]

1. d4 {[%clk 0:03:00.9]} 1... d5 {[%clk 0:02:58.2]} 2. c4 {[%clk 0:03:01]} 2...
e6 {[%clk 0:02:57.6]} 3. Nc3 {[%clk 0:03:01]} 3... c6 {[%clk 0:02:58]} 4. e4
{[%clk 0:03:00.3]} 4... dxe4 {[%clk 0:02:57.6]} 5. Nxe4 {[%clk 0:03:01.2]} 5...
Bb4+ {[%clk 0:02:57.6]} 6. Bd2 {[%clk 0:03:01.6]} 6... Qxd4 {[%clk 0:02:57.5]}
7. Bxb4 {[%clk 0:03:01.8]} 7... Qxe4+ {[%clk 0:02:57.1]} 8. Ne2 {[%clk
0:03:02.7]} 8... Na6 {[%clk 0:02:56.5]} 9. Bf8 {[%clk 0:03:02.8]} 9... Ne7
{[%clk 0:02:37.8]} 10. Bxg7 {[%clk 0:03:02.3]} 10... Nb4 {[%clk 0:02:21.2]} 11.
Qd6 {[%clk 0:02:59.7]} 11... Nd3+ {[%clk 0:02:03.9]} 12. Kd2 {[%clk 0:02:59]}
12... Nf5 {[%clk 0:01:54.6]} 13. Qxd3 {[%clk 0:02:59]} 13... Qxd3+ {[%clk
0:01:54.7]} 14. Kxd3 {[%clk 0:02:59.9]} 14... Nxg7 {[%clk 0:01:55.2]} 15. Kc3
{[%clk 0:02:55.3]} 15... e5 {[%clk 0:01:52.2]} 16. Ng3 {[%clk 0:02:54.7]} 16...
Be6 {[%clk 0:01:51.2]} 17. Re1 {[%clk 0:02:53.3]} 17... f6 {[%clk 0:01:50.7]}
18. f4 {[%clk 0:02:49.3]} 18... exf4 {[%clk 0:01:47.7]} 19. Ne2 {[%clk
0:02:48.5]} 19... Kf7 {[%clk 0:01:41.1]} 20. Nxf4 {[%clk 0:02:44.5]} 20... Rad8
{[%clk 0:01:35.8]} 21. Be2 {[%clk 0:02:39.6]} 21... Bf5 {[%clk 0:01:28.8]} 22.
Rhf1 {[%clk 0:02:39]} 22... Bg6 {[%clk 0:01:27.5]} 23. Bg4 {[%clk 0:02:37.5]}
23... Rhe8 {[%clk 0:01:24.4]} 24. b3 {[%clk 0:02:34]} 24... h5 {[%clk
0:01:13.5]} 25. Bf3 {[%clk 0:02:27.5]} 25... Bf5 {[%clk 0:01:01.2]} 26. Nxh5
{[%clk 0:02:19.1]} 26... Rd3+ {[%clk 0:00:57.3]} 27. Kb4 {[%clk 0:02:17.8]}
27... Rxe1 {[%clk 0:00:24.2]} 28. Rxe1 {[%clk 0:02:18.7]} 28... Rd2 {[%clk
0:00:14.9]} 29. Nxg7 {[%clk 0:02:18]} 29... Kxg7 {[%clk 0:00:15]} 30. Re7+
{[%clk 0:02:17.8]} 30... Kg6 {[%clk 0:00:14.9]} 31. Rxb7 {[%clk 0:02:18.7]}
31... Rxa2 {[%clk 0:00:14.7]} 32. Bxc6 {[%clk 0:02:19.2]} 32... a5+ {[%clk
0:00:12.9]} 33. Kc5 {[%clk 0:02:18]} 33... Rb2 {[%clk 0:00:12.4]} 34. Bd5 {[%clk
0:02:15]} 34... Kg5 {[%clk 0:00:10.3]} 35. Ra7 {[%clk 0:02:11.4]} 35... Rxb3
{[%clk 0:00:08.5]} 36. Rxa5 {[%clk 0:02:11.8]} 36... Kf4 {[%clk 0:00:06.7]} 37.
Kd6 {[%clk 0:02:10.3]} 37... Rb2 {[%clk 0:00:05.5]} 38. c5 {[%clk 0:02:10.2]}
38... Rd2 {[%clk 0:00:04.8]} 39. Ra4+ {[%clk 0:02:07.3]} 39... Ke3 {[%clk
0:00:04.4]} 40. c6 {[%clk 0:02:07.2]} 40... Bg6 {[%clk 0:00:01.7]} 41. c7 {[%clk
0:02:07.1]} 41... Rc2 {[%clk 0:00:01.6]} 42. Rc4 {[%clk 0:02:06.3]} 42... Rxc4
{[%clk 0:00:01.9]} 43. Bxc4 {[%clk 0:02:07.2]} 43... Be4 {[%clk 0:00:02.4]} 44.
c8=Q {[%clk 0:02:05.5]} 44... Bxg2 {[%clk 0:00:02.6]} 45. Qe6+ {[%clk
0:02:04.9]} 1-0

[Event "*** Titled Tuesday Blitz"]
[Site "Chess.com"]
[Date "2021.03.09"]
[Round "11"]
[White "SanQui14"]
[Black "tgpgoat"]
[Result "1-0"]
[WhiteElo "2346"]
[BlackElo "2173"]
[TimeControl "180+1"]
[EndTime "12:08:26 PST"]
[Termination "SanQui14 won by resignation"]

1. d4 {[%clk 0:03:00.9]} 1... Nf6 {[%clk 0:00:23.9]} 2. Nf3 {[%clk 0:02:56.6]}
2... d5 {[%clk 0:00:23.9]} 3. g3 {[%clk 0:02:57.3]} 3... g6 {[%clk 0:00:24.2]}
4. Bg2 {[%clk 0:02:58.1]} 4... Bg7 {[%clk 0:00:25]} 5. O-O {[%clk 0:02:58.8]}
5... O-O {[%clk 0:00:25.9]} 6. c4 {[%clk 0:02:59.5]} 6... c6 {[%clk 0:00:26.7]}
7. Nc3 {[%clk 0:03:00]} 7... dxc4 {[%clk 0:00:27]} 8. a4 {[%clk 0:02:59.3]} 8...
Nbd7 {[%clk 0:00:27.3]} 9. Nd2 {[%clk 0:02:58]} 9... Re8 {[%clk 0:00:27.3]} 10.
Nxc4 {[%clk 0:02:57.9]} 10... Qc7 {[%clk 0:00:25.7]} 11. Bf4 {[%clk 0:02:57.3]}
11... Qd8 {[%clk 0:00:23.9]} 12. a5 {[%clk 0:02:57.6]} 12... Nh5 {[%clk
0:00:23.9]} 13. Bg5 {[%clk 0:02:56.7]} 13... h6 {[%clk 0:00:23.6]} 14. Be3
{[%clk 0:02:54.8]} 14... e5 {[%clk 0:00:23.2]} 15. dxe5 {[%clk 0:02:53.9]} 15...
Nxe5 {[%clk 0:00:24.1]} 16. Nd6 {[%clk 0:02:51.1]} 16... Re6 {[%clk 0:00:20.5]}
17. Nxc8 {[%clk 0:02:50.1]} 17... Qxc8 {[%clk 0:00:21.4]} 18. Bh3 {[%clk
0:02:48.7]} 18... f5 {[%clk 0:00:20.9]} 19. Qb3 {[%clk 0:02:48]} 19... Kh7
{[%clk 0:00:20.5]} 20. Rfd1 {[%clk 0:02:45.2]} 20... Qe8 {[%clk 0:00:20]} 21.
Rd2 {[%clk 0:02:39.9]} 21... Nf6 {[%clk 0:00:20.3]} 22. Rad1 {[%clk 0:02:39]}
22... Nfg4 {[%clk 0:00:20.2]} 23. Bd4 {[%clk 0:02:33.4]} 23... Rd8 {[%clk
0:00:17]} 24. Bg2 {[%clk 0:02:29.8]} 24... Red6 {[%clk 0:00:15.1]} 25. Be3
{[%clk 0:02:16.9]} 25... Nxe3 {[%clk 0:00:12.7]} 26. Rxd6 {[%clk 0:02:15.9]}
26... Nxd1 {[%clk 0:00:13.3]} 27. Rxd1 {[%clk 0:02:14.5]} 27... Rxd1+ {[%clk
0:00:12.7]} 28. Qxd1 {[%clk 0:02:14.1]} 28... Qd7 {[%clk 0:00:13.2]} 29. Qb3
{[%clk 0:02:13.3]} 29... Ng4 {[%clk 0:00:11]} 30. h3 {[%clk 0:02:13]} 30... Nf6
{[%clk 0:00:10.6]} 31. Qc4 {[%clk 0:02:09.3]} 31... Ne8 {[%clk 0:00:10.5]} 32.
a6 {[%clk 0:02:08.6]} 32... b6 {[%clk 0:00:09.2]} 33. Bxc6 {[%clk 0:02:08.2]}
33... Qe7 {[%clk 0:00:09.3]} 34. Nd5 {[%clk 0:02:03.1]} 34... Qe5 {[%clk
0:00:08.1]} 35. Bxe8 {[%clk 0:01:58.4]} 35... Qxe8 {[%clk 0:00:07.6]} 36. Qc7
{[%clk 0:01:59]} 36... Qe6 {[%clk 0:00:06.1]} 37. Nf4 {[%clk 0:01:55.2]} 37...
Qe5 {[%clk 0:00:04.6]} 38. Qxa7 {[%clk 0:01:45.9]} 38... Qxb2 {[%clk 0:00:04.6]}
39. Ne6 {[%clk 0:01:44.1]} 39... Qb1+ {[%clk 0:00:05]} 40. Kh2 {[%clk
0:01:43.5]} 40... Qa1 {[%clk 0:00:05.4]} 41. Qxg7+ {[%clk 0:01:42.2]} 41... Qxg7
{[%clk 0:00:06.3]} 42. Nxg7 {[%clk 0:01:42.6]} 1-0

[Event "*** Titled Tuesday Blitz"]
[Site "Chess.com"]
[Date "2021.03.09"]
[Round "11"]
[White "UmarovSabir"]
[Black "ValeriyGrinev"]
[Result "0-1"]
[WhiteElo "2301"]
[BlackElo "2548"]
[TimeControl "180+1"]
[EndTime "12:08:28 PST"]
[Termination "ValeriyGrinev won on time"]

1. e4 {[%clk 0:03:00.7]} 1... c5 {[%clk 0:02:59.3]} 2. Nf3 {[%clk 0:02:59.2]}
2... e6 {[%clk 0:02:58.6]} 3. d4 {[%clk 0:02:59]} 3... cxd4 {[%clk 0:02:59.5]}
4. Qxd4 {[%clk 0:02:59]} 4... Nc6 {[%clk 0:02:58.6]} 5. Qe3 {[%clk 0:02:59]}
5... Nf6 {[%clk 0:02:57]} 6. c4 {[%clk 0:02:58.6]} 6... Ng4 {[%clk 0:02:56.8]}
7. Qf4 {[%clk 0:02:36.4]} 7... f5 {[%clk 0:02:28]} 8. exf5 {[%clk 0:02:09.7]}
8... Qa5+ {[%clk 0:02:27.2]} 9. Nc3 {[%clk 0:02:08.7]} 9... Qxf5 {[%clk
0:02:18.5]} 10. Qxf5 {[%clk 0:02:08.5]} 10... exf5 {[%clk 0:02:19.4]} 11. Nd5
{[%clk 0:02:00]} 11... Bb4+ {[%clk 0:02:10.1]} 12. Bd2 {[%clk 0:01:57.6]} 12...
Bxd2+ {[%clk 0:02:09.7]} 13. Nxd2 {[%clk 0:01:07]} 13... O-O {[%clk 0:02:10.6]}
14. Be2 {[%clk 0:01:01.7]} 14... Nd4 {[%clk 0:02:08.2]} 15. Bxg4 {[%clk
0:00:55.5]} 15... fxg4 {[%clk 0:02:08.3]} 16. O-O {[%clk 0:00:46.1]} 16... d6
{[%clk 0:02:08.7]} 17. Ne4 {[%clk 0:00:43.2]} 17... Bf5 {[%clk 0:02:05.5]} 18.
Nxd6 {[%clk 0:00:41.6]} 18... Bd3 {[%clk 0:01:48.3]} 19. Rfd1 {[%clk 0:00:25.9]}
19... Ne2+ {[%clk 0:01:48.3]} 20. Kh1 {[%clk 0:00:22.6]} 20... Bg6 {[%clk
0:01:49.2]} 21. Ne7+ {[%clk 0:00:18.5]} 21... Kh8 {[%clk 0:01:48.3]} 22. Nxg6+
{[%clk 0:00:15.6]} 22... hxg6 {[%clk 0:01:49.2]} 23. Rf1 {[%clk 0:00:11.8]}
23... Rad8 {[%clk 0:01:47.8]} 24. Ne4 {[%clk 0:00:10.1]} 24... Rd4 {[%clk
0:01:46]} 25. Ng3 {[%clk 0:00:08.2]} 25... Nxg3+ {[%clk 0:01:43.7]} 26. hxg3
{[%clk 0:00:04.4]} 26... Rxc4 {[%clk 0:01:42.9]} 27. f3 {[%clk 0:00:03.2]} 27...
Rc2 {[%clk 0:01:37.3]} 28. fxg4 {[%clk 0:00:02.7]} 28... Rxf1+ {[%clk
0:01:37.2]} 29. Rxf1 {[%clk 0:00:02.5]} 29... Rxb2 {[%clk 0:01:38]} 30. Rf8+
{[%clk 0:00:01.8]} 30... Kh7 {[%clk 0:01:38]} 31. a4 {[%clk 0:00:02.2]} 31...
Rb4 {[%clk 0:01:36.5]} 32. Rf7 {[%clk 0:00:02.1]} 32... Rxg4 {[%clk 0:01:36.5]}
0-1

[Event "*** Titled Tuesday Blitz"]
[Site "Chess.com"]
[Date "2021.03.09"]
[Round "11"]
[White "pastouche06"]
[Black "Lestofante90"]
[Result "0-1"]
[WhiteElo "2557"]
[BlackElo "2720"]
[TimeControl "180+1"]
[EndTime "12:08:32 PST"]
[Termination "Lestofante90 won by resignation"]

1. d4 {[%clk 0:03:00.9]} 1... Nf6 {[%clk 0:02:52.8]} 2. c4 {[%clk 0:02:59]} 2...
e6 {[%clk 0:02:51.5]} 3. Nc3 {[%clk 0:02:58.8]} 3... Bb4 {[%clk 0:02:51.5]} 4.
e3 {[%clk 0:02:51.2]} 4... O-O {[%clk 0:02:49.3]} 5. Ne2 {[%clk 0:02:49.6]} 5...
c6 {[%clk 0:02:47.8]} 6. a3 {[%clk 0:02:48.8]} 6... Ba5 {[%clk 0:02:47.4]} 7. c5
{[%clk 0:02:48.3]} 7... d5 {[%clk 0:02:46.6]} 8. cxd6 {[%clk 0:02:49.2]} 8...
Qxd6 {[%clk 0:02:46.8]} 9. b4 {[%clk 0:02:49.3]} 9... Bc7 {[%clk 0:02:46.2]} 10.
g3 {[%clk 0:02:49.7]} 10... e5 {[%clk 0:02:46.7]} 11. Bg2 {[%clk 0:02:49.3]}
11... Re8 {[%clk 0:02:47.1]} 12. O-O {[%clk 0:02:49.2]} 12... e4 {[%clk
0:02:47.6]} 13. f3 {[%clk 0:02:45]} 13... exf3 {[%clk 0:02:43.7]} 14. Rxf3
{[%clk 0:02:43.4]} 14... Bg4 {[%clk 0:02:43]} 15. Rf2 {[%clk 0:02:40.4]} 15...
Nbd7 {[%clk 0:02:43.4]} 16. Qd3 {[%clk 0:02:30.4]} 16... Rad8 {[%clk 0:02:16.6]}
17. Nf4 {[%clk 0:02:19.2]} 17... Nf8 {[%clk 0:01:54.7]} 18. Qf1 {[%clk
0:01:54.2]} 18... Bc8 {[%clk 0:01:40.4]} 19. Nfe2 {[%clk 0:01:44.4]} 19... Ng4
{[%clk 0:01:33.7]} 20. Rf3 {[%clk 0:01:42.3]} 20... f5 {[%clk 0:01:31.9]} 21.
Qe1 {[%clk 0:00:58]} 21... Ne6 {[%clk 0:01:26.3]} 22. h3 {[%clk 0:00:56.1]}
22... Nf6 {[%clk 0:01:25.9]} 23. Rxf5 {[%clk 0:00:51.3]} 23... Nxd4 {[%clk
0:01:20.5]} 24. Nxd4 {[%clk 0:00:44.8]} 24... Qxd4 {[%clk 0:01:20.4]} 25. Rc5
{[%clk 0:00:35.6]} 25... Bb6 {[%clk 0:01:11.3]} 26. exd4 {[%clk 0:00:17.9]}
26... Rxe1+ {[%clk 0:01:10.4]} 27. Kf2 {[%clk 0:00:18.4]} 27... Rde8 {[%clk
0:01:04.5]} 28. Bd2 {[%clk 0:00:16.8]} 28... Rxa1 {[%clk 0:01:02.6]} 0-1

[Event "*** Titled Tuesday Blitz"]
[Site "Chess.com"]
[Date "2021.03.09"]
[Round "11"]
[White "PawnEatingZombie"]
[Black "WilliamSchill"]
[Result "1-0"]
[WhiteElo "2239"]
[BlackElo "2052"]
[TimeControl "180+1"]
[EndTime "12:08:36 PST"]
[Termination "PawnEatingZombie won by resignation"]

1. d4 {[%clk 0:03:00.9]} 1... Nf6 {[%clk 0:02:59.1]} 2. c4 {[%clk 0:03:00.9]}
2... g6 {[%clk 0:02:59.5]} 3. Nc3 {[%clk 0:03:00.8]} 3... Bg7 {[%clk 0:02:59.8]}
4. e4 {[%clk 0:03:01.1]} 4... d6 {[%clk 0:03:00.2]} 5. Be2 {[%clk 0:03:01.4]}
5... O-O {[%clk 0:02:58.2]} 6. Be3 {[%clk 0:03:01.7]} 6... c6 {[%clk 0:02:53.7]}
7. g4 {[%clk 0:02:56.7]} 7... a6 {[%clk 0:02:53.3]} 8. h4 {[%clk 0:02:55.6]}
8... b5 {[%clk 0:02:53.3]} 9. a3 {[%clk 0:02:55.1]} 9... bxc4 {[%clk 0:02:46.9]}
10. h5 {[%clk 0:02:54]} 10... e5 {[%clk 0:02:33.1]} 11. dxe5 {[%clk 0:02:50.1]}
11... dxe5 {[%clk 0:02:29.7]} 12. Qxd8 {[%clk 0:02:49.7]} 12... Rxd8 {[%clk
0:02:28.5]} 13. h6 {[%clk 0:02:35.3]} 13... Bf8 {[%clk 0:02:21.4]} 14. f3 {[%clk
0:02:35.4]} 14... Be6 {[%clk 0:02:16.5]} 15. Nh3 {[%clk 0:02:20.6]} 15... Nbd7
{[%clk 0:02:08.1]} 16. Ng5 {[%clk 0:02:20.3]} 16... Nc5 {[%clk 0:02:08.1]} 17.
Nxe6 {[%clk 0:02:18.7]} 17... Nxe6 {[%clk 0:02:06.3]} 18. Bxc4 {[%clk
0:02:17.5]} 18... Bc5 {[%clk 0:02:02]} 19. Bxc5 {[%clk 0:02:10.3]} 19... Nxc5
{[%clk 0:02:01.9]} 20. Ke2 {[%clk 0:02:07.2]} 20... Rd4 {[%clk 0:01:55.4]} 21.
b3 {[%clk 0:01:57.3]} 21... Rad8 {[%clk 0:01:53.8]} 22. Rad1 {[%clk 0:01:55.9]}
22... Rxd1 {[%clk 0:01:34.7]} 23. Rxd1 {[%clk 0:01:54.9]} 23... Rxd1 {[%clk
0:01:34.9]} 24. Nxd1 {[%clk 0:01:51.1]} 24... a5 {[%clk 0:01:32.8]} 25. Ne3
{[%clk 0:01:45.9]} 25... Kf8 {[%clk 0:01:30.1]} 26. b4 {[%clk 0:01:39.2]} 26...
axb4 {[%clk 0:01:29.1]} 27. axb4 {[%clk 0:01:40.1]} 27... Nb7 {[%clk 0:01:21.9]}
28. Ba6 {[%clk 0:01:20.3]} 28... Nd6 {[%clk 0:01:21.4]} 29. Kd3 {[%clk
0:01:11.1]} 29... Ke7 {[%clk 0:01:03.8]} 30. Nc4 {[%clk 0:01:09.7]} 30... Nxc4
{[%clk 0:01:02.2]} 31. Kxc4 {[%clk 0:01:10.6]} 31... Kd6 {[%clk 0:01:01]} 32.
Kd3 {[%clk 0:00:59.3]} 32... Ng8 {[%clk 0:01:00.6]} 33. g5 {[%clk 0:00:59.5]}
33... f6 {[%clk 0:01:00.7]} 34. Bc4 {[%clk 0:00:58.1]} 34... Ne7 {[%clk
0:00:50.6]} 35. gxf6 {[%clk 0:00:57.8]} 35... Nc8 {[%clk 0:00:50.4]} 36. Ke3
{[%clk 0:00:49.8]} 36... g5 {[%clk 0:00:44.7]} 37. Kf2 {[%clk 0:00:49.1]} 1-0